{"text_format":"1","workbook":"xlsx","n_sheets":7,"sheets":["メイン","長さ・直径別","コード別","樹種別","日付・月別","作業報告書","印刷とPDF出力に関するヘルプ"],"not_rendered":{"charts":0,"images":4,"macros":1,"external_links":0,"defined_names":6,"comments":0,"pivot_tables":0},"unopened":[],"bounds":{"document_bytes":16777216,"sheet_cells":100000,"rows_first":2000,"rows_last":500,"rows_between":2000,"halvings":0,"cell_chars":16384,"cell_head_chars":4096},"cells_cut":0,"cells_raw":0,"read":"whole","date_system":"1900"}

{"sheet":"メイン","index":0,"n_rows":17,"n_cols":12,"rows_kept":17,"cut":false,"hidden":false,"merged":[[13,5,13,6],[13,3,13,4],[0,4,0,6]]}
["　",null,null,null,"規格長さ特例設定(cm)"]
[null,null,null,"優先順位","以上","未満","結果"]
[null,null,null,1,190,200,190]
[null,null,null,2,210,220,210]
[null,null,null,3,270,280,270]
[null,null,null,4,330,340,330]
[null,null,null,5,365,380,365]
[null,null,null,6,430,440,430]
[null,null,null,7,0,0,0]
[null,null,null,8,0,0,0]
[null,null,null,9,0,0,0]
[null,null,null,10,0,0,0]
[]
[null,null,null,"規格長さ標準設定",null,"規格直径設定",null,null,"本数",null,null,"本"]
[null,null,null,20,"cm刻み",14,"cm以上から2cm刻み",null,"素材材積合計",null,null,"m3"]
[null,null,null,null,null,null,null,null,"規格材積合計",null,null,"m3"]
[null,null,null,null,null,null,null,null,"材積計算用合計",null,null,"m3"]

{"sheet":"長さ・直径別","index":1,"n_rows":3,"n_cols":6,"rows_kept":3,"cut":false,"hidden":false,"merged":[[2,3,2,4],[1,3,1,4]]}
[]
[null,"総合計","本数",null,null,"本"]
[null,null,"材積",null,null,"m3"]

{"sheet":"コード別","index":2,"n_rows":19,"n_cols":10,"rows_kept":19,"cut":false,"hidden":false,"merged":[]}
[]
[null,"コード","本数","材積(㎥)","単価","出来高",null,"合計本数","合計材積(㎥)","合計出来高"]
[null,"A-1",null,null,null,{"$f":"ROUNDDOWN(D3*E3,0)","v":0},null,{"$f":"SUM(C3:C19)","v":0},{"$f":"SUM(D3:D19)","v":0},{"$f":"SUM(F3:F19)","v":0}]
[null,"A-2",null,null,null,0]
[null,"A-3",null,null,null,0]
[null,"A-4",null,null,null,0]
[null,"B-1",null,null,null,0]
[null,"B-2",null,null,null,0]
[null,"B-3",null,null,null,0]
[null,"B-4",null,null,null,0]
[null,"C-1",null,null,null,0]
[null,"C-2",null,null,null,0]
[null,"C-3",null,null,null,0]
[null,"C-4",null,null,null,0]
[null,"D-1",null,null,null,0]
[null,"D-2",null,null,null,0,null,"注意"]
[null,"D-3",null,null,null,0,null,"単価欄には整数値を入力してください"]
[null,"D-4",null,null,null,0,null,"整数値以外を入力するとセルが黄色で表示されます"]
[null,"測長解除",null,null,null,0,null,"黄色いセルがある場合はコード別の作業報告書作成を行えません"]

{"sheet":"樹種別","index":3,"n_rows":2,"n_cols":7,"rows_kept":2,"cut":false,"hidden":false,"merged":[]}
[]
[null,"樹種","本数","材積(㎥)",null,"合計本数","合計材積(㎥)"]

{"sheet":"日付・月別","index":4,"n_rows":2,"n_cols":11,"rows_kept":2,"cut":false,"hidden":false,"merged":[]}
[]
[null,"日付別","本数","材積(㎥)",null,"月別","本数","材積(㎥)",null,"合計本数","合計材積(㎥)"]

{"sheet":"作業報告書","index":5,"n_rows":72,"n_cols":13,"rows_kept":72,"cut":false,"hidden":false,"merged":[[67,5,71,8],[3,0,4,2],[70,2,70,4],[67,1,67,4],[68,1,68,4],[69,1,69,4],[71,1,71,4]]}
[null,null,null,"  作業報告書"]
[]
["お客様名",null,null,null,null,null,"集計方法"]
[]
[null,null,null,"様",null,null,null,null,null,null,null,null,"　"]
[]
["集計期間：",null,null,null,null,null,"施業面積："]
["施業期間：",null,null,null,null,null,"施業形態："]
["施業地："]
[]
[]
[]
[]
[]
[]
[]
[]
[]
[]
[]
[]
[]
[]
[]
[]
[]
[]
[]
[]
[]
[]
[]
[]
[]
[]
[]
[]
[]
[]
[]
[]
[]
[]
[]
[]
[]
[]
[]
[]
[]
[]
[]
[]
[]
[]
[]
[]
[]
[]
[]
[]
[]
[]
[]
[]
[]
["合計本数：",null,"合計材積：",null,"m3","事業者情報"]
["機材メーカー：","イワフジ工業"]
["機種："]
["号機："]
["エンコーダの最終調整日："]
["運転者名："]

{"sheet":"印刷とPDF出力に関するヘルプ","index":6,"n_rows":81,"n_cols":26,"rows_kept":81,"cut":false,"hidden":false,"merged":[]}
[]
[null,"材積集計アシストVer.3.0.0時点では、A4サイズ1枚を想定して印刷、PDF出力に対応しています。"]
[null,"また、印刷、PDF出力共通でExcelの印刷設定を利用します。"]
[null,"そのため、正しく出力できない場合は以下の印刷設定画像を参考にしてください。"]
[]
[]
[]
[]
[]
[]
[]
[]
[]
[]
[]
[]
[]
[]
[]
[]
[]
[]
[]
[]
[]
[]
[]
[]
[]
[]
[]
[]
[]
[]
[]
[]
[]
[]
[]
[]
[]
[]
[]
[]
[]
[]
[]
[]
[]
[]
[]
[]
[]
[]
[]
[]
[]
[]
[]
[]
[]
[]
[]
[]
[]
[]
[]
[]
[]
[]
[]
[]
[]
[]
[]
[]
[]
[]
[]
[]
[null,null,null,null,null,null,null,null,null,null,null,null,null,null,null,null,null,null,null,null,null,null,null,null,null,1]